Workbook

Sheet All Employers (hidden)
W4: Region | X4: PY 2012-2013 | Y4: PY 2013-2014 | Z4: Percent Completion
W5: 1 | X5: =#REF! ->  | Y5: =#REF! ->  | Z5: =#REF! -> 
W6: 2 | X6: =#REF! ->  | Y6: =#REF! ->  | Z6: =#REF! -> 
W7: 3 | X7: =#REF! ->  | Y7: =#REF! ->  | Z7: =#REF! -> 
W8: 4 | X8: =#REF! ->  | Y8: =#REF! ->  | Z8: =#REF! -> 
W9: 5 | X9: =#REF! ->  | Y9: =#REF! ->  | Z9: =#REF! -> 
W10: 6 | X10: =#REF! ->  | Y10: =#REF! ->  | Z10: =#REF! -> 
W11: 7 | X11: =#REF! ->  | Y11: =#REF! ->  | Z11: =#REF! -> 
W12: 8 | X12: =#REF! ->  | Y12: =#REF! ->  | Z12: =#REF! -> 
W13: 9 | X13: =#REF! ->  | Y13: =#REF! ->  | Z13: =#REF! -> 
W14: 10 | X14: =#REF! ->  | Y14: =#REF! ->  | Z14: =#REF! -> 
W15: 11 | X15: =#REF! ->  | Y15: =#REF! ->  | Z15: =#REF! -> 
W16: 12 | X16: =#REF! ->  | Y16: =#REF! ->  | Z16: =#REF! -> 
W17: 13 | X17: =#REF! ->  | Y17: =#REF! ->  | Z17: =#REF! -> 
W18: 14 | X18: =#REF! ->  | Y18: =#REF! ->  | Z18: =#REF! -> 
W19: 15 | X19: =#REF! ->  | Y19: =#REF! ->  | Z19: =#REF! -> 
W20: 16 | X20: =#REF! ->  | Y20: =#REF! ->  | Z20: =#REF! -> 
W21: 17 | X21: =#REF! ->  | Y21: =#REF! ->  | Z21: =#REF! -> 
W22: 18 | X22: =#REF! ->  | Y22: =#REF! ->  | Z22: =#REF! -> 
W23: 19 | X23: =#REF! ->  | Y23: =#REF! ->  | Z23: =#REF! -> 
W24: 20 | X24: =#REF! ->  | Y24: =#REF! ->  | Z24: =#REF! -> 
W25: 21 | X25: =#REF! ->  | Y25: =#REF! ->  | Z25: =#REF! -> 
W26: 22 | X26: =#REF! ->  | Y26: =#REF! ->  | Z26: =#REF! -> 
W27: 23 | X27: =#REF! ->  | Y27: =#REF! ->  | Z27: =#REF! -> 
W28: 24 | X28: =#REF! ->  | Y28: =#REF! ->  | Z28: =#REF! -> 

Sheet Level 1 Employers (hidden)
W4: Region | X4: PY 2012-2013 | Y4: PY 2013-2014 | Z4: Percent Completion
W5: 1 | X5: =#REF! ->  | Y5: =#REF! ->  | Z5: =#REF! -> 
W6: 2 | X6: =#REF! ->  | Y6: =#REF! ->  | Z6: =#REF! -> 
W7: 3 | X7: =#REF! ->  | Y7: =#REF! ->  | Z7: =#REF! -> 
W8: 4 | X8: =#REF! ->  | Y8: =#REF! ->  | Z8: =#REF! -> 
W9: 5 | X9: =#REF! ->  | Y9: =#REF! ->  | Z9: =#REF! -> 
W10: 6 | X10: =#REF! ->  | Y10: =#REF! ->  | Z10: =#REF! -> 
W11: 7 | X11: =#REF! ->  | Y11: =#REF! ->  | Z11: =#REF! -> 
W12: 8 | X12: =#REF! ->  | Y12: =#REF! ->  | Z12: =#REF! -> 
W13: 9 | X13: =#REF! ->  | Y13: =#REF! ->  | Z13: =#REF! -> 
W14: 10 | X14: =#REF! ->  | Y14: =#REF! ->  | Z14: =#REF! -> 
W15: 11 | X15: =#REF! ->  | Y15: =#REF! ->  | Z15: =#REF! -> 
W16: 12 | X16: =#REF! ->  | Y16: =#REF! ->  | Z16: =#REF! -> 
W17: 13 | X17: =#REF! ->  | Y17: =#REF! ->  | Z17: =#REF! -> 
W18: 14 | X18: =#REF! ->  | Y18: =#REF! ->  | Z18: =#REF! -> 
W19: 15 | X19: =#REF! ->  | Y19: =#REF! ->  | Z19: =#REF! -> 
W20: 16 | X20: =#REF! ->  | Y20: =#REF! ->  | Z20: =#REF! -> 
W21: 17 | X21: =#REF! ->  | Y21: =#REF! ->  | Z21: =#REF! -> 
W22: 18 | X22: =#REF! ->  | Y22: =#REF! ->  | Z22: =#REF! -> 
W23: 19 | X23: =#REF! ->  | Y23: =#REF! ->  | Z23: =#REF! -> 
W24: 20 | X24: =#REF! ->  | Y24: =#REF! ->  | Z24: =#REF! -> 
W25: 21 | X25: =#REF! ->  | Y25: =#REF! ->  | Z25: =#REF! -> 
W26: 22 | X26: =#REF! ->  | Y26: =#REF! ->  | Z26: =#REF! -> 
W27: 23 | X27: =#REF! ->  | Y27: =#REF! ->  | Z27: =#REF! -> 
W28: 24 | X28: =#REF! ->  | Y28: =#REF! ->  | Z28: =#REF! -> 

Sheet Summary
B1: PY 2014-2015 Employer Penetration Incentive Award Allocations
A2: Region | B2: Employer Retention (20% Increase) | C2: Continuous Improvement (10% Increase ) | D2: Excellence (25% Increase) | E2: Total Allocation
A3: 1 | B3: =Retention!Q4 -> 12480.94227 | C3: ='10% Stretch'!P4 -> 15308.03321 | D3: ='25% Stretch'!P4 -> 15308.03321 | E3: =SUM(B3:D3) -> 43097.00869
A4: 2 | B4: =Retention!Q5 -> 16531.6433 | C4: ='10% Stretch'!P5 -> 5482.387699 | D4: ='25% Stretch'!P5 -> 5482.387699 | E4: =SUM(B4:D4) -> 27496.4187
A5: 3 | B5: =Retention!Q6 -> 4678.484948 | C5: ='10% Stretch'!P6 -> 2990.866155 | D5: ='25% Stretch'!P6 -> 2990.866155 | E5: 10660.21726
A6: 4 | B6: =Retention!Q7 -> 11823.26388 | C6: ='10% Stretch'!P7 -> 3864.719223 | D6: ='25% Stretch'!P7 -> 3864.719223 | E6: 19552.70232
A7: 5 | B7: =Retention!Q8 -> 15365.75887 | C7: ='10% Stretch'!P8 -> 5862.097663 | D7: ='25% Stretch'!P8 -> 5862.097663 | E7: 27089.9542
A8: 6 | B8: =Retention!Q9 -> 3961.017608 | C8: ='10% Stretch'!P9 -> 2928.448079 | D8: ='25% Stretch'!P9 -> 2928.448079 | E8: 9817.913765
A9: 7 | B9: =Retention!Q10 -> 3811.545245 | C9: ='10% Stretch'!P10 -> 1420.011235 | D9: ='25% Stretch'!P10 -> 1420.011235 | E9: 6651.567716
A10: 8 | B10: =Retention!Q11 -> 27174.07551 | C10: ='10% Stretch'!P11 -> 12166.32337 | D10: ='25% Stretch'!P11 -> 12166.32337 | E10: 51506.72225
A11: 9 | B11: =Retention!Q12 -> 7324.145765 | C11: ='10% Stretch'!P12 -> 4733.370784 | D11: ='25% Stretch'!P12 -> 4733.370784 | E11: 16790.88733
A12: 10 | B12: =Retention!Q13 -> 18355.20612 | C12: ='10% Stretch'!P13 -> 7968.707738 | D12: ='25% Stretch'!P13 -> 7968.707738 | E12: 34292.6216
A13: 11 | B13: =Retention!Q14 -> 14543.66088 | C13: ='10% Stretch'!P14 -> 7354.929988 | D13: ='25% Stretch'!P14 -> 7354.929988 | E13: 29253.52085
A14: 12 | B14: =Retention!Q15 -> 44811.8143 | C14: ='10% Stretch'!P15 -> 13825.60389 | D14: ='25% Stretch'!P15 -> 13825.60389 | E14: 72463.02209
A15: 13 | B15: =Retention!Q16 -> 24827.35942 | C15: ='10% Stretch'!P16 -> 13404.28188 | D15: ='25% Stretch'!P16 -> 13404.28188 | E15: 51635.92318
A16: 14 | B16: =Retention!Q17 -> 25485.03782 | C16: ='10% Stretch'!P17 -> 15724.15371 | D16: ='25% Stretch'!P17 -> 15724.15371 | E16: 56933.34525
A17: 15 | B17: =Retention!Q18 -> 35903.26149 | C17: ='10% Stretch'!P18 -> 11313.27632 | D17: ='25% Stretch'!P18 -> 11313.27632 | E17: 58529.81414
A18: 16 | B18: =Retention!Q19 -> 13721.56288 | C18: ='10% Stretch'!P19 -> 14272.93344 | D18: ='25% Stretch'!P19 -> 14272.93344 | E18: 42267.42977
A19: 17 | B19: =Retention!Q20 -> 17876.89456 | C19: ='10% Stretch'!P20 -> 5617.626865 | D19: ='25% Stretch'!P20 -> 5617.626865 | E19: 29112.14829
A20: 18 | B20: =Retention!Q21 -> 15888.91214 | C20: ='10% Stretch'!P21 -> 7901.088155 | D20: ='25% Stretch'!P21 -> 7901.088155 | E20: 31691.08845
A21: 19 | B21: =Retention!Q22 -> 7757.615617 | C21: ='10% Stretch'!P22 -> 3635.852943 | D21: ='25% Stretch'!P22 -> 3635.852943 | E21: 15029.3215
A22: 20 | B22: =Retention!Q23 -> 13661.77394 | C22: ='10% Stretch'!P23 -> 10330.19162 | D22: ='25% Stretch'!P23 -> 10330.19162 | E22: 34322.15718
A23: 21 | B23: =Retention!Q24 -> 15784.28149 | C23: ='10% Stretch'!P24 -> 5430.372636 | D23: ='25% Stretch'!P24 -> 5430.372636 | E23: 26645.02676
A24: 22 | B24: =Retention!Q25 -> 61881.5581 | C24: ='10% Stretch'!P25 -> 23994.54882 | D24: ='25% Stretch'!P25 -> 23994.54882 | E24: 109870.6557
A25: 23 | B25: =Retention!Q26 -> 68503.18376 | C25: ='10% Stretch'!P26 -> 42439.09036 | D25: ='25% Stretch'!P26 -> 42439.09036 | E25: 153381.3645
A26: 24 | B26: =Retention!Q27 -> 17847.00009 | C26: ='10% Stretch'!P27 -> 12031.0842 | D26: ='25% Stretch'!P27 -> 12031.0842 | E26: 41909.16849
A27: Statewide | B27: =SUM(B3:B26) -> 500000 | C27: ='10% Stretch'!P28 -> 250000 | D27: =SUM(D3:D26) -> 250000 | E27: =SUM(E3:E26) -> 1000000

Sheet Retention
B1: Employer Retention (20% Increase): July 1, 2014 - December 31, 2014 | S1: Incentive Allocation | U1: % Increase
B2: PY 2013-2014 (Baseline) | H2: PY 2014-2015 (Year-to-Date) | N2: PY 2014-2015 Goal | S2: 500000 | U2: 0.2
A3: Region | B3: Total Employers Served | C3: New Employers | D3: % of New Employers Served | E3: Return Employers | F3: % of Return Employers Served | G3: % of Statewide Return Employers Served | H3: Total Employers Served | I3: New Employers | J3: % of New Employers Served | K3: Return Employers | L3: % of Return Employers Served | M3: % of Statewide Return Employers Served | N3: Additional Return Employers Needed | O3: Total Return Employers Needed | P3: % of Goal | Q3: Incentive Allocation
A4: 1 | B4: 3273 | C4: =B4-E4 -> 2438 | D4: =C4/B4 -> 0.7448823709 | E4: 835 | F4: =E4/B4 -> 0.2551176291 | G4: =E4/$E$28 -> 0.02496188455 | H4: 1393 | I4: =H4-K4 -> 933 | J4: =I4/H4 -> 0.6697774587 | K4: 460 | L4: =K4/H4 -> 0.3302225413 | M4: =K4/$K$28 -> 0.01625154566 | N4: =E4*$U$2 -> 167 | O4: =E4+N4 -> 1002 | P4: =K4/O4 -> 0.4590818363 | Q4: =G4*$S$2 -> 12480.94227
A5: 2 | B5: 2656 | C5: 1550 | D5: 0.5835843373 | E5: 1106 | F5: 0.4164156627 | G5: 0.0330632866 | H5: 2654 | I5: 1952 | J5: 0.7354935946 | K5: 702 | L5: 0.2645064054 | M5: 0.02480127186 | N5: 221.2 | O5: 1327.2 | P5: =K5/O5 -> 0.5289330922 | Q5: =G5*$S$2 -> 16531.6433
A6: 3 | B6: 800 | C6: 487 | D6: 0.60875 | E6: 313 | F6: 0.39125 | G6: 0.009356969896 | H6: 340 | I6: 98 | J6: 0.2882352941 | K6: 242 | L6: 0.7117647059 | M6: 0.008549726197 | N6: 62.6 | O6: 375.6 | P6: 0.6443024494 | Q6: 4678.484948
A7: 4 | B7: 2235 | C7: 1444 | D7: 0.6460850112 | E7: 791 | F7: 0.3539149888 | G7: 0.02364652776 | H7: 1374 | I7: 649 | J7: 0.4723435226 | K7: 725 | L7: 0.5276564774 | M7: 0.02561384914 | N7: 158.2 | O7: 949.2 | P7: 0.7638010957 | Q7: 11823.26388
A8: 5 | B8: 2342 | C8: 1314 | D8: 0.561058924 | E8: 1028 | F8: 0.438941076 | G8: 0.03073151774 | H8: 1349 | I8: 400 | J8: 0.2965159377 | K8: 949 | L8: 0.7034840623 | M8: 0.03352764529 | N8: 205.6 | O8: 1233.6 | P8: 0.7692931258 | Q8: 15365.75887
A9: 6 | B9: 643 | C9: 378 | D9: 0.5878693624 | E9: 265 | F9: 0.4121306376 | G9: 0.007922035216 | H9: 526 | I9: 198 | J9: 0.3764258555 | K9: 328 | L9: 0.6235741445 | M9: 0.01158805865 | N9: 53 | O9: 318 | P9: 1.031446541 | Q9: 3961.017608
A10: 7 | B10: 457 | C10: 202 | D10: 0.4420131291 | E10: 255 | F10: 0.5579868709 | G10: 0.007623090491 | H10: 325 | I10: 139 | J10: 0.4276923077 | K10: 186 | L10: 0.5723076923 | M10: 0.00657127716 | N10: 51 | O10: 306 | P10: 0.6078431373 | Q10: 3811.545245
A11: 8 | B11: 5504 | C11: 3686 | D11: 0.6696947674 | E11: 1818 | F11: 0.3303052326 | G11: 0.05434815103 | H11: 5768 | I11: 3434 | J11: 0.5953536755 | K11: 2334 | L11: 0.4046463245 | M11: 0.08245892952 | N11: 363.6 | O11: 2181.6 | P11: 1.069856986 | Q11: 27174.07551
A12: 9 | B12: 1842 | C12: 1352 | D12: 0.7339847991 | E12: 490 | F12: 0.2660152009 | G12: 0.01464829153 | H12: 811 | I12: 548 | J12: 0.6757090012 | K12: 263 | L12: 0.3242909988 | M12: 0.009291644586 | N12: 98 | O12: 588 | P12: 0.4472789116 | Q12: 7324.145765
A13: 10 | B13: 3121 | C13: 1893 | D13: 0.6065363665 | E13: 1228 | F13: 0.3934636335 | G13: 0.03671041224 | H13: 1445 | I13: 785 | J13: 0.5432525952 | K13: 660 | L13: 0.4567474048 | M13: 0.02331743508 | N13: 245.6 | O13: 1473.6 | P13: 0.4478827362 | Q13: 18355.20612
A14: 11 | B14: 2589 | C14: 1616 | D14: 0.6241792198 | E14: 973 | F14: 0.3758207802 | G14: 0.02908732175 | H14: 1091 | I14: 564 | J14: 0.5169569203 | K14: 527 | L14: 0.4830430797 | M14: 0.01861861862 | N14: 194.6 | O14: 1167.6 | P14: 0.4513532032 | Q14: 14543.66088
A15: 12 | B15: 7865 | C15: 4867 | D15: 0.6188175461 | E15: 2998 | F15: 0.3811824539 | G15: 0.08962362859 | H15: 4191 | I15: 2127 | J15: 0.5075161059 | K15: 2064 | L15: 0.4924838941 | M15: 0.0729199788 | N15: 599.6 | O15: 3597.6 | P15: 0.5737158105 | Q15: 44811.8143
A16: 13 | B16: 4483 | C16: 2822 | D16: 0.6294891814 | E16: 1661 | F16: 0.3705108186 | G16: 0.04965471884 | H16: 1569 | I16: 511 | J16: 0.3256851498 | K16: 1058 | L16: 0.6743148502 | M16: 0.03737855503 | N16: 332.2 | O16: 1993.2 | P16: 0.5308047361 | Q16: 24827.35942
A17: 14 | B17: 5374 | C17: 3669 | D17: 0.682731671 | E17: 1705 | F17: 0.317268329 | G17: 0.05097007563 | H17: 4423 | I17: 1472 | J17: 0.3328057879 | K17: 2951 | L17: 0.6671942121 | M17: 0.1042571984 | N17: 341 | O17: 2046 | P17: 1.442326491 | Q17: 25485.03782
A18: 15 | B18: 7791 | C18: 5389 | D18: 0.6916955461 | E18: 2402 | F18: 0.3083044539 | G18: 0.07180652297 | H18: 6198 | I18: 3676 | J18: 0.5930945466 | K18: 2522 | L18: 0.4069054534 | M18: 0.08910086557 | N18: 480.4 | O18: 2882.4 | P18: 0.8749653067 | Q18: 35903.26149
A19: 16 | B19: 3707 | C19: 2789 | D19: 0.7523603992 | E19: 918 | F19: 0.2476396008 | G19: 0.02744312577 | H19: 1983 | I19: 1053 | J19: 0.5310136157 | K19: 930 | L19: 0.4689863843 | M19: 0.0328563858 | N19: 183.6 | O19: 1101.6 | P19: 0.8442265795 | Q19: 13721.56288
A20: 17 | B20: 3007 | C20: 1811 | D20: 0.6022613901 | E20: 1196 | F20: 0.3977386099 | G20: 0.03575378912 | H20: 1275 | I20: 666 | J20: 0.5223529412 | K20: 609 | L20: 0.4776470588 | M20: 0.02151563328 | N20: 239.2 | O20: 1435.2 | P20: 0.4243311037 | Q20: 17876.89456
A21: 18 | B21: 2915 | C21: 1852 | D21: 0.6353344768 | E21: 1063 | F21: 0.3646655232 | G21: 0.03177782428 | H21: 2495 | I21: 1207 | J21: 0.4837675351 | K21: 1288 | L21: 0.5162324649 | M21: 0.04550432786 | N21: 212.6 | O21: 1275.6 | P21: 1.009720916 | Q21: 15888.91214
A22: 19 | B22: 1377 | C22: 858 | D22: 0.6230936819 | E22: 519 | F22: 0.3769063181 | G22: 0.01551523123 | H22: 870 | I22: 474 | J22: 0.5448275862 | K22: 396 | L22: 0.4551724138 | M22: 0.01399046105 | N22: 103.8 | O22: 622.8 | P22: 0.6358381503 | Q22: 7757.615617
A23: 20 | B23: 2708 | C23: 1794 | D23: 0.6624815362 | E23: 914 | F23: 0.3375184638 | G23: 0.02732354788 | H23: 1757 | I23: 669 | J23: 0.3807626636 | K23: 1088 | L23: 0.6192373364 | M23: 0.03843843844 | N23: 182.8 | O23: 1096.8 | P23: 0.9919766594 | Q23: 13661.77394
A24: 21 | B24: 4316 | C24: 3260 | D24: 0.7553290083 | E24: 1056 | F24: 0.2446709917 | G24: 0.03156856297 | H24: 5408 | I24: 3405 | J24: 0.6296227811 | K24: 2003 | L24: 0.3703772189 | M24: 0.07076488253 | N24: 211.2 | O24: 1267.2 | P24: 1.580650253 | Q24: 15784.28149
A25: 22 | B25: 11322 | C25: 7182 | D25: 0.6343402226 | E25: 4140 | F25: 0.3656597774 | G25: 0.1237631162 | H25: 5267 | I25: 3084 | J25: 0.5855325612 | K25: 2183 | L25: 0.4144674388 | M25: 0.07712418301 | N25: 828 | O25: 4968 | P25: 0.4394122383 | Q25: 61881.5581
A26: 23 | B26: 16747 | C26: 12164 | D26: 0.7263390458 | E26: 4583 | F26: 0.2736609542 | G26: 0.1370063675 | H26: 7990 | I26: 5200 | J26: 0.6508135169 | K26: 2790 | L26: 0.3491864831 | M26: 0.09856915739 | N26: 916.6 | O26: 5499.6 | P26: 0.5073096225 | Q26: 68503.18376
A27: 24 | B27: 4228 | C27: 3034 | D27: 0.7175969726 | E27: 1194 | F27: 0.2824030274 | G27: 0.03569400018 | H27: 3091 | I27: 2044 | J27: 0.6612746684 | K27: 1047 | L27: 0.3387253316 | M27: 0.03698993111 | N27: 238.8 | O27: 1432.8 | P27: 0.7307370184 | Q27: 17847.00009
A28: Statewide | B28: =SUM(B4:B27) -> 101302 | C28: 67851 | D28: 0.6697893428 | E28: =SUM(E4:E27) -> 33451 | F28: 0.3302106572 | G28: 1 | H28: =SUM(H4:H27) -> 63593 | I28: 35288 | J28: 0.5549038416 | K28: =SUM(K4:K27) -> 28305 | L28: 0.4450961584 | M28: 1 | N28: 6690.2 | O28: 40141.2 | P28: 0.7051358704 | Q28: =SUM(Q4:Q27) -> 500000

Sheet Region 1 (hidden)

Sheet Sheet2 (hidden)
B1: Employers Served
B2: PY2011-2012 | E2: PY2012-2013 | H2: % Change
A3: Region | B3: All Employers | C3: Level 1 Employers | D3: % Receiving Level 1 | E3: All Employers | F3: Level 1 Employers | G3: % Receiving Level 1 | H3: All Employers | I3: Level 1 Employers
A4: 1 | B4: 940 | C4: 563 | D4: =C4/B4 -> 0.5989361702 | E4: 1033 | G4: =F4/E4 -> 0 | H4: =(E4-B4)/B4 -> 0.09893617021 | I4: =(F4-C4)/C4 -> -1
A5: 2 | B5: 922 | C5: 441 | D5: =C5/B5 -> 0.478308026 | E5: 1282 | G5: =F5/E5 -> 0 | H5: =(E5-B5)/B5 -> 0.3904555315 | I5: -1
A6: 3 | B6: 375 | C6: 304 | D6: 0.8106666667 | E6: 378 | G6: 0 | H6: 0.008 | I6: -1
A7: 4 | B7: 941 | C7: 216 | D7: 0.2295430393 | E7: 1017 | G7: 0 | H7: 0.08076514346 | I7: -1
A8: 5 | B8: 1116 | C8: 517 | D8: 0.4632616487 | E8: 1239 | G8: 0 | H8: 0.1102150538 | I8: -1
A9: 6 | B9: 366 | C9: 295 | D9: 0.806010929 | E9: 326 | G9: 0 | H9: -0.1092896175 | I9: -1
A10: 7 | B10: 425 | C10: 271 | D10: 0.6376470588 | E10: 406 | G10: 0 | H10: -0.04470588235 | I10: -1
A11: 8 | B11: 2234 | C11: 1238 | D11: 0.5541629364 | E11: 2318 | G11: 0 | H11: 0.0376007162 | I11: -1
A12: 9 | B12: 891 | C12: 558 | D12: 0.6262626263 | E12: 887 | G12: 0 | H12: -0.004489337823 | I12: -1
A13: 10 | B13: 1287 | C13: 792 | D13: 0.6153846154 | E13: 1567 | G13: 0 | H13: 0.2175602176 | I13: -1
A14: 11 | B14: 1125 | C14: 583 | D14: 0.5182222222 | E14: 1983 | G14: 0 | H14: 0.7626666667 | I14: -1
A15: 12 | B15: 3196 | C15: 642 | D15: 0.2008760951 | E15: 3419 | G15: 0 | H15: 0.0697747184 | I15: -1
A16: 13 | B16: 2025 | C16: 1340 | D16: 0.6617283951 | E16: 2113 | G16: 0 | H16: 0.04345679012 | I16: -1
A17: 14 | B17: 2211 | C17: 242 | D17: 0.1094527363 | E17: 2548 | G17: 0 | H17: 0.1524197196 | I17: -1
A18: 15 | B18: 2866 | C18: 1256 | D18: 0.4382414515 | E18: 4043 | G18: 0 | H18: 0.4106769016 | I18: -1
A19: 16 | B19: 2901 | C19: 1775 | D19: 0.61185798 | E19: 1626 | G19: 0 | H19: -0.4395036194 | I19: -1
A20: 17 | B20: 1416 | C20: 798 | D20: 0.563559322 | E20: 1565 | G20: 0 | H20: 0.1052259887 | I20: -1
A21: 18 | B21: 1414 | C21: 668 | D21: 0.4724186704 | E21: 1404 | G21: 0 | H21: -0.007072135785 | I21: -1
A22: 19 | B22: 695 | C22: 460 | D22: 0.6618705036 | E22: 677 | G22: 0 | H22: -0.02589928058 | I22: -1
A23: 20 | B23: 1227 | C23: 791 | D23: 0.6446617767 | E23: 1302 | G23: 0 | H23: 0.06112469438 | I23: -1
A24: 21 | B24: 2227 | C24: 627 | D24: 0.2815446789 | E24: 1929 | G24: 0 | H24: -0.1338123035 | I24: -1
A25: 22 | B25: 5234 | C25: 2645 | D25: 0.505349637 | E25: 5169 | G25: 0 | H25: -0.01241880015 | I25: -1
A26: 23 | B26: 5409 | C26: 3219 | D26: 0.5951192457 | E26: 4819 | G26: 0 | H26: -0.1090774635 | I26: -1
A27: 24 | B27: 1315 | C27: 582 | D27: 0.4425855513 | E27: 1910 | G27: 0 | H27: 0.4524714829 | I27: -1

Sheet 10% Stretch
B1: Employers Served - Continuous Improvement (10% Stretch): July 1, 2014 -December 31, 2014 | R1: Incentive Allocation
B2: PY 2013-2014 (Baseline) | G2: PY 2014-2015 (Year-to-Date) | L2: PY 2014-2015 Goal | R2: 250000
A3: Region | B3: All Employers | C3: Level 1 Employers | D3: % Receiving Level 1 | E3: % of All Employers | F3: % of All Level 1 Employers | G3: All Employers | H3: Level 1 Employers | I3: % Receiving Level 1 | J3: % of All Employers | K3: % of All Level 1 Employers | L3: All Employers | M3: % of All Employers Goal | N3: Level 1 Employers | O3: % of Level 1 Employers Goal | P3: Incentive Allocation
A4: 1 | B4: 3273 | C4: 2931 | D4: 0.8978035387 | E4: 0.03234974835 | F4: 0.06123213283 | G4: 1393 | H4: 691 | I4: =H4/G4 -> 0.496051687 | J4: =G4/$G$28 -> 0.02190492664 | K4: =H4/$H$28 -> 0.01821584858 | L4: =B4*1.1 -> 3600.3 | M4: =G4/L4 -> 0.3869122018 | N4: =C4*1.1 -> 3224.1 | O4: =H4/N4 -> 0.2143233771 | P4: =F4*$R$2 -> 15308.03321
A5: 2 | B5: 2656 | C5: 1053 | D5: 0.3969868173 | E5: 0.02620151979 | F5: 0.0219295508 | G5: 2654 | H5: 716 | I5: 0.2697814619 | J5: 0.04173415313 | K5: 0.01887488796 | L5: 2921.6 | M5: =G5/L5 -> 0.9084063527 | N5: 1158.3 | O5: =H5/N5 -> 0.6181472848 | P5: =F5*$R$2 -> 5482.387699
A6: 3 | B6: 800 | C6: 575 | D6: 0.716957606 | E6: 0.007914734037 | F6: 0.01196346462 | G6: 340 | H6: 231 | I6: 0.6794117647 | J6: 0.005346500401 | K6: 0.00608952391 | L6: 880 | M6: 0.3863636364 | N6: 632.5 | O6: 0.3652173913 | P6: 2990.866155
A7: 4 | B7: 2235 | C7: 744 | D7: 0.3321412606 | E7: 0.02207638409 | F7: 0.01545887689 | G7: 1374 | H7: 922 | I7: 0.6710334789 | J7: 0.02160615162 | K7: 0.02430537249 | L7: 2458.5 | M7: 0.5588773642 | N7: 818.4 | O7: 1.126588465 | P7: 3864.719223
A8: 5 | B8: 2342 | C8: 1128 | D8: 0.4818298418 | E8: 0.02308299615 | F8: 0.02344839065 | G8: 1349 | H8: 1002 | I8: 0.742772424 | J8: 0.02121302659 | K8: 0.02641429852 | L8: 2576.2 | M8: 0.523639469 | N8: 1240.8 | O8: 0.8075435203 | P8: 5862.097663
A9: 6 | B9: 643 | C9: 562 | D9: 0.8755832037 | E9: 0.006345603474 | F9: 0.01171379231 | G9: 526 | H9: 480 | I9: 0.9125475285 | J9: 0.00827135062 | K9: 0.01265355618 | L9: 707.3 | M9: 0.7436731231 | N9: 618.2 | O9: 0.7764477515 | P9: 2928.448079
A10: 7 | B10: 457 | C10: 274 | D10: 0.5973741794 | E10: 0.004510016777 | F10: 0.005680044941 | G10: 325 | H10: 243 | I10: 0.7476923077 | J10: 0.005110625383 | K10: 0.006405862814 | L10: 502.7 | M10: 0.6465088522 | N10: 301.4 | O10: 0.8062375581 | P10: 1420.011235
A11: 8 | B11: 5504 | C11: 2337 | D11: 0.4248092989 | E11: 0.05433731373 | F11: 0.04866529347 | G11: 5768 | H11: 2713 | I11: 0.4703536755 | J11: 0.0907018068 | K11: 0.07151895397 | L11: 6054.4 | M11: 0.9526955603 | N11: 2570.7 | O11: 1.055354573 | P11: 12166.32337
A12: 9 | B12: 1842 | C12: 910 | D12: 0.4942965779 | E12: 0.0181683608 | F12: 0.01893348314 | G12: 811 | H12: 411 | I12: 0.5067817509 | J12: 0.01275297596 | K12: 0.01083460748 | L12: 2026.2 | M12: 0.400256638 | N12: 1001 | O12: 0.4105894106 | P12: 4733.370784
A13: 10 | B13: 3121 | C13: 1534 | D13: 0.4907110826 | E13: 0.03081022402 | F13: 0.03187483095 | G13: 1445 | H13: 585 | I13: 0.4048442907 | J13: 0.0227226267 | K13: 0.01542152159 | L13: 3433.1 | M13: 0.4209023914 | N13: 1687.4 | O13: 0.3466872111 | P13: 7968.707738
A14: 11 | B14: 2589 | C14: 1413 | D14: 0.5459459459 | E14: 0.02556005132 | F14: 0.02941971995 | G14: 1091 | H14: 671 | I14: 0.6150320807 | J14: 0.01715597629 | K14: 0.01768861707 | L14: 2847.9 | M14: 0.3830892939 | N14: 1554.3 | O14: 0.4317055909 | P14: 7354.929988
A15: 12 | B15: 7865 | C15: 2679 | D15: 0.3389441469 | E15: 0.07739070364 | F15: 0.05530241558 | G15: 4191 | H15: 2506 | I15: 0.5979479838 | J15: 0.06590347994 | K15: 0.06606210787 | L15: 8651.5 | M15: 0.4844246662 | N15: 2946.9 | O15: 0.8503851505 | P15: 13825.60389
A16: 13 | B16: 4483 | C16: 2577 | D16: 0.5749665328 | E16: 0.04423171815 | F16: 0.05361712752 | G16: 1569 | H16: 1036 | I16: 0.6602931804 | J16: 0.02467252685 | K16: 0.02731059208 | L16: 4931.3 | M16: 0.3181716789 | N16: 2834.7 | O16: 0.3654707729 | P16: 13404.28188
A17: 14 | B17: 5374 | C17: 3024 | D17: 0.5629422719 | E17: 0.05299516431 | F17: 0.06289661486 | G17: 4423 | H17: 3612 | I17: 0.8166402894 | J17: 0.06955168022 | K17: 0.09521801023 | L17: 5911.4 | M17: 0.7482153128 | N17: 3326.4 | O17: 1.085858586 | P17: 15724.15371
A18: 15 | B18: 7791 | C18: 2171 | D18: 0.2791324435 | E18: 0.07689726636 | F18: 0.0452531053 | G18: 6198 | H18: 2754 | I18: 0.4443368829 | J18: 0.09746355731 | K18: 0.07259977856 | L18: 8570.1 | M18: 0.7232120979 | N18: 2388.1 | O18: 1.153218039 | P18: 11313.27632
A19: 16 | B19: 3707 | C19: 2747 | D19: 0.7406207827 | E19: 0.03656370275 | F19: 0.05709173377 | G19: 1983 | H19: 1649 | I19: 0.8315683308 | J19: 0.03118267734 | K19: 0.04347023778 | L19: 4077.7 | M19: 0.4863035535 | N19: 3021.7 | O19: 0.5457192971 | P19: 14272.93344
A20: 17 | B20: 3007 | C20: 1079 | D20: 0.3592814371 | E20: 0.02966544952 | F20: 0.02247050746 | G20: 1275 | H20: 642 | I20: 0.5035294118 | J20: 0.0200493765 | K20: 0.01692413139 | L20: 3307.7 | M20: 0.3854642199 | N20: 1186.9 | O20: 0.5409048783 | P20: 5617.626865
A21: 18 | B21: 2915 | C21: 1518 | D21: 0.5209190672 | E21: 0.02877726241 | F21: 0.03160435262 | G21: 2495 | H21: 2013 | I21: 0.8068136273 | J21: 0.03923387794 | K21: 0.05306585122 | L21: 3206.5 | M21: 0.7781069702 | N21: 1669.8 | O21: 1.205533597 | P21: 7901.088155
A22: 19 | B22: 1377 | C22: 698 | D22: 0.5076252723 | E22: 0.0135892628 | F22: 0.01454341177 | G22: 870 | H22: 523 | I22: 0.6011494253 | J22: 0.01368075103 | K22: 0.01378710392 | L22: 1514.7 | M22: 0.5743711626 | N22: 767.8 | O22: 0.6811669706 | P22: 3635.852943
A23: 20 | B23: 2708 | C23: 1988 | D23: 0.7336534909 | E23: 0.02671469456 | F23: 0.04132076649 | G23: 1757 | H23: 1513 | I23: 0.8611269209 | J23: 0.02762882707 | K23: 0.03988506353 | L23: 2978.8 | M23: 0.5898348328 | N23: 2186.8 | O23: 0.691878544 | P23: 10330.19162
A24: 21 | B24: 4316 | C24: 1044 | D24: 0.2420588917 | E24: 0.04256390013 | F24: 0.02172149054 | G24: 5408 | H24: 3665 | I24: 0.6776997041 | J24: 0.08504080638 | K24: 0.09661517372 | L24: 4747.6 | M24: 1.139101862 | N24: 1148.4 | O24: 3.191396726 | P24: 5430.372636
A25: 22 | B25: 11322 | C25: 4612 | D25: 0.4075448361 | E25: 0.1117043324 | F25: 0.09597819529 | G25: 5267 | H25: 2077 | I25: 0.3943421302 | J25: 0.08282358121 | K25: 0.05475299204 | L25: 12454.2 | M25: 0.4229095406 | N25: 5073.2 | O25: 0.4094062919 | P25: 23994.54882
A26: 23 | B26: 16747 | C26: 8157 | D26: 0.4855680533 | E26: 0.1658245337 | F26: 0.1697563614 | G26: 7990 | H26: 4774 | I26: 0.5974968711 | J26: 0.1256427594 | K26: 0.1258501608 | L26: 18421.7 | M26: 0.4337276147 | N26: 8972.7 | O26: 0.5320583548 | P26: 42439.09036
A27: 24 | B27: 4228 | C27: 2313 | D27: 0.5470671712 | E27: 0.04172505675 | F27: 0.04812433681 | G27: 3091 | H27: 2505 | I27: 0.8104173407 | J27: 0.04860597865 | K27: 0.0660357463 | L27: 4650.8 | M27: 0.6646168401 | N27: 2544.3 | O27: 0.9845537083 | P27: 12031.0842
A28: Statewide | B28: =SUM(B4:B27) -> 101302 | C28: =SUM(C4:C27) -> 48068 | D28: =C28/B28 -> 0.4745019842 | E28: =SUM(E4:E27) -> 1 | F28: =SUM(F4:F27) -> 1 | G28: =SUM(G4:G27) -> 63593 | H28: =SUM(H4:H27) -> 37934 | I28: 0.5965121947 | J28: =SUM(J4:J27) -> 1 | K28: =SUM(K4:K27) -> 1 | L28: =SUM(L4:L27) -> 111432.2 | M28: 0.5706878263 | N28: =SUM(N4:N27) -> 52874.8 | O28: 0.7174306097 | P28: =SUM(P4:P27) -> 250000

Sheet 25% Stretch
B1: Employers Served - Excellence (25% Stretch): July 1, 2014 - December 31, 2014 | R1: Incentive Allocation
B2: PY 2013-2014 (Baseline) | G2: PY 2014-2015 (Year-to-Date) | L2: PY 2014-2015 Goal | R2: 250000
A3: Region | B3: All Employers | C3: Level 1 Employers | D3: % Receiving Level 1 | E3: % of All Employers | F3: % of All Level 1 Employers | G3: All Employers | H3: Level 1 Employers | I3: % Receiving Level 1 | J3: % of All Employers | K3: % of All Level 1 Employers | L3: All Employers | M3: % of All Employers Goal | N3: Level 1 Employers | O3: % of Level 1 Employers Goal | P3: Incentive Allocation
A4: 1 | B4: 3273 | C4: 2931 | D4: 0.8978035387 | E4: 0.03234974835 | F4: 0.06123213283 | G4: 1393 | H4: 691 | I4: =H4/G4 -> 0.496051687 | J4: =G4/$G$28 -> 0.02190492664 | K4: =H4/$H$28 -> 0.01821584858 | L4: =B4*1.25 -> 4091.25 | M4: =G4/L4 -> 0.3404827375 | N4: =C4*1.25 -> 3663.75 | O4: =H4/N4 -> 0.1886045718 | P4: =F4*$R$2 -> 15308.03321
A5: 2 | B5: 2656 | C5: 1053 | D5: 0.3969868173 | E5: 0.02620151979 | F5: 0.0219295508 | G5: 2654 | H5: 716 | I5: 0.2697814619 | J5: 0.04173415313 | K5: 0.01887488796 | L5: 3320 | M5: =G5/L5 -> 0.7993975904 | N5: 1316.25 | O5: =H5/N5 -> 0.5439696106 | P5: =F5*$R$2 -> 5482.387699
A6: 3 | B6: 800 | C6: 575 | D6: 0.716957606 | E6: 0.007914734037 | F6: 0.01196346462 | G6: 340 | H6: 231 | I6: 0.6794117647 | J6: 0.005346500401 | K6: 0.00608952391 | L6: 1000 | M6: 0.34 | N6: 718.75 | O6: 0.3213913043 | P6: 2990.866155
A7: 4 | B7: 2235 | C7: 744 | D7: 0.3321412606 | E7: 0.02207638409 | F7: 0.01545887689 | G7: 1374 | H7: 922 | I7: 0.6710334789 | J7: 0.02160615162 | K7: 0.02430537249 | L7: 2793.75 | M7: 0.4918120805 | N7: 930 | O7: 0.9913978495 | P7: 3864.719223
A8: 5 | B8: 2342 | C8: 1128 | D8: 0.4818298418 | E8: 0.02308299615 | F8: 0.02344839065 | G8: 1349 | H8: 1002 | I8: 0.742772424 | J8: 0.02121302659 | K8: 0.02641429852 | L8: 2927.5 | M8: 0.4608027327 | N8: 1410 | O8: 0.7106382979 | P8: 5862.097663
A9: 6 | B9: 643 | C9: 562 | D9: 0.8755832037 | E9: 0.006345603474 | F9: 0.01171379231 | G9: 526 | H9: 480 | I9: 0.9125475285 | J9: 0.00827135062 | K9: 0.01265355618 | L9: 803.75 | M9: 0.6544323484 | N9: 702.5 | O9: 0.6832740214 | P9: 2928.448079
A10: 7 | B10: 457 | C10: 274 | D10: 0.5973741794 | E10: 0.004510016777 | F10: 0.005680044941 | G10: 325 | H10: 243 | I10: 0.7476923077 | J10: 0.005110625383 | K10: 0.006405862814 | L10: 571.25 | M10: 0.5689277899 | N10: 342.5 | O10: 0.7094890511 | P10: 1420.011235
A11: 8 | B11: 5504 | C11: 2337 | D11: 0.4248092989 | E11: 0.05433731373 | F11: 0.04866529347 | G11: 5768 | H11: 2713 | I11: 0.4703536755 | J11: 0.0907018068 | K11: 0.07151895397 | L11: 6880 | M11: 0.838372093 | N11: 2921.25 | O11: 0.928712024 | P11: 12166.32337
A12: 9 | B12: 1842 | C12: 910 | D12: 0.4942965779 | E12: 0.0181683608 | F12: 0.01893348314 | G12: 811 | H12: 411 | I12: 0.5067817509 | J12: 0.01275297596 | K12: 0.01083460748 | L12: 2302.5 | M12: 0.3522258415 | N12: 1137.5 | O12: 0.3613186813 | P12: 4733.370784
A13: 10 | B13: 3121 | C13: 1534 | D13: 0.4907110826 | E13: 0.03081022402 | F13: 0.03187483095 | G13: 1445 | H13: 585 | I13: 0.4048442907 | J13: 0.0227226267 | K13: 0.01542152159 | L13: 3901.25 | M13: 0.3703941045 | N13: 1917.5 | O13: 0.3050847458 | P13: 7968.707738
A14: 11 | B14: 2589 | C14: 1413 | D14: 0.5459459459 | E14: 0.02556005132 | F14: 0.02941971995 | G14: 1091 | H14: 671 | I14: 0.6150320807 | J14: 0.01715597629 | K14: 0.01768861707 | L14: 3236.25 | M14: 0.3371185786 | N14: 1766.25 | O14: 0.37990092 | P14: 7354.929988
A15: 12 | B15: 7865 | C15: 2679 | D15: 0.3389441469 | E15: 0.07739070364 | F15: 0.05530241558 | G15: 4191 | H15: 2506 | I15: 0.5979479838 | J15: 0.06590347994 | K15: 0.06606210787 | L15: 9831.25 | M15: 0.4262937063 | N15: 3348.75 | O15: 0.7483389324 | P15: 13825.60389
A16: 13 | B16: 4483 | C16: 2577 | D16: 0.5749665328 | E16: 0.04423171815 | F16: 0.05361712752 | G16: 1569 | H16: 1036 | I16: 0.6602931804 | J16: 0.02467252685 | K16: 0.02731059208 | L16: 5603.75 | M16: 0.2799910774 | N16: 3221.25 | O16: 0.3216142802 | P16: 13404.28188
A17: 14 | B17: 5374 | C17: 3024 | D17: 0.5629422719 | E17: 0.05299516431 | F17: 0.06289661486 | G17: 4423 | H17: 3612 | I17: 0.8166402894 | J17: 0.06955168022 | K17: 0.09521801023 | L17: 6717.5 | M17: 0.6584294753 | N17: 3780 | O17: 0.9555555556 | P17: 15724.15371
A18: 15 | B18: 7791 | C18: 2171 | D18: 0.2791324435 | E18: 0.07689726636 | F18: 0.0452531053 | G18: 6198 | H18: 2754 | I18: 0.4443368829 | J18: 0.09746355731 | K18: 0.07259977856 | L18: 9738.75 | M18: 0.6364266461 | N18: 2713.75 | O18: 1.014831875 | P18: 11313.27632
A19: 16 | B19: 3707 | C19: 2747 | D19: 0.7406207827 | E19: 0.03656370275 | F19: 0.05709173377 | G19: 1983 | H19: 1649 | I19: 0.8315683308 | J19: 0.03118267734 | K19: 0.04347023778 | L19: 4633.75 | M19: 0.4279471271 | N19: 3433.75 | O19: 0.4802329814 | P19: 14272.93344
A20: 17 | B20: 3007 | C20: 1079 | D20: 0.3592814371 | E20: 0.02966544952 | F20: 0.02247050746 | G20: 1275 | H20: 642 | I20: 0.5035294118 | J20: 0.0200493765 | K20: 0.01692413139 | L20: 3758.75 | M20: 0.3392085135 | N20: 1348.75 | O20: 0.4759962929 | P20: 5617.626865
A21: 18 | B21: 2915 | C21: 1518 | D21: 0.5209190672 | E21: 0.02877726241 | F21: 0.03160435262 | G21: 2495 | H21: 2013 | I21: 0.8068136273 | J21: 0.03923387794 | K21: 0.05306585122 | L21: 3643.75 | M21: 0.6847341338 | N21: 1897.5 | O21: 1.060869565 | P21: 7901.088155
A22: 19 | B22: 1377 | C22: 698 | D22: 0.5076252723 | E22: 0.0135892628 | F22: 0.01454341177 | G22: 870 | H22: 523 | I22: 0.6011494253 | J22: 0.01368075103 | K22: 0.01378710392 | L22: 1721.25 | M22: 0.5054466231 | N22: 872.5 | O22: 0.5994269341 | P22: 3635.852943
A23: 20 | B23: 2708 | C23: 1988 | D23: 0.7336534909 | E23: 0.02671469456 | F23: 0.04132076649 | G23: 1757 | H23: 1513 | I23: 0.8611269209 | J23: 0.02762882707 | K23: 0.03988506353 | L23: 3385 | M23: 0.5190546529 | N23: 2485 | O23: 0.6088531187 | P23: 10330.19162
A24: 21 | B24: 4316 | C24: 1044 | D24: 0.2420588917 | E24: 0.04256390013 | F24: 0.02172149054 | G24: 5408 | H24: 3665 | I24: 0.6776997041 | J24: 0.08504080638 | K24: 0.09661517372 | L24: 5395 | M24: 1.002409639 | N24: 1305 | O24: 2.808429119 | P24: 5430.372636
A25: 22 | B25: 11322 | C25: 4612 | D25: 0.4075448361 | E25: 0.1117043324 | F25: 0.09597819529 | G25: 5267 | H25: 2077 | I25: 0.3943421302 | J25: 0.08282358121 | K25: 0.05475299204 | L25: 14152.5 | M25: 0.3721603957 | N25: 5765 | O25: 0.3602775369 | P25: 23994.54882
A26: 23 | B26: 16747 | C26: 8157 | D26: 0.4855680533 | E26: 0.1658245337 | F26: 0.1697563614 | G26: 7990 | H26: 4774 | I26: 0.5974968711 | J26: 0.1256427594 | K26: 0.1258501608 | L26: 20933.75 | M26: 0.3816803009 | N26: 10196.25 | O26: 0.4682113522 | P26: 42439.09036
A27: 24 | B27: 4228 | C27: 2313 | D27: 0.5470671712 | E27: 0.04172505675 | F27: 0.04812433681 | G27: 3091 | H27: 2505 | I27: 0.8104173407 | J27: 0.04860597865 | K27: 0.0660357463 | L27: 5285 | M27: 0.5848628193 | N27: 2891.25 | O27: 0.8664072633 | P27: 12031.0842
A28: Statewide | B28: =SUM(B4:B27) -> 101302 | C28: =SUM(C4:C27) -> 48068 | D28: =C28/B28 -> 0.4745019842 | E28: =SUM(E4:E27) -> 1 | F28: =SUM(F4:F27) -> 1 | G28: =SUM(G4:G27) -> 63593 | H28: =SUM(H4:H27) -> 37934 | I28: 0.5965121947 | J28: =SUM(J4:J27) -> 1 | K28: =SUM(K4:K27) -> 1 | L28: =SUM(L4:L27) -> 126627.5 | M28: 0.5022052872 | N28: =SUM(N4:N27) -> 60085 | O28: 0.6313389365 | P28: =SUM(P4:P27) -> 250000
